bitfinex/quotes_BTCUSD_20240715
["timestamp","ask_amount","ask_price","bid_price","bid_amount"]
[1721062693522,0.3274,63665.0,63657.0,0.01773602]
[1721062693726,0.3274,63665.0,63658.0,0.157088]
[1721062694115,0.3274,63665.0,63657.0,0.15709]
[1721062694542,0.3334,63665.0,63658.0,0.314176]
[1721062694702,0.006,63665.0,63663.0,0.157075]
[1721062694907,0.006,63665.0,63662.0,0.0987884]
[1721062695092,0.1,63670.0,63662.0,0.0987884]
[1721062695292,0.1,63670.0,63663.0,0.01773602]
[1721062695494,0.1,63670.0,63665.0,0.157072]
[1721062696092,0.15935791,63670.0,63660.0,0.220482]
[1721062696296,0.15925791,63670.0,63660.0,0.220482]
[1721062696741,0.15925791,63670.0,63661.0,0.157081]
[1721062697187,0.005,63665.0,63663.0,0.001]
[1721062697387,0.15925791,63670.0,63663.0,0.001]
[1721062697662,0.0998,63670.0,63664.0,0.17481002]
[1721062697896,0.1416,63677.0,63660.0,0.145]
[1721062697897,0.00306353,63675.0,63673.0,0.01773602]
[1721062698099,0.1434,63685.0,63673.0,0.01773602]
[1721062698100,0.00306353,63676.0,63673.0,0.17478602]
[1721062698319,0.00306353,63676.0,63675.0,0.01773602]
[1721062698535,0.00306353,63683.0,63676.0,0.157044]
[1721062698741,0.06242144,63683.0,63674.0,0.157047]
[1721062698892,0.05935791,63680.0,63673.0,0.157051]
[1721062699097,0.2274,63678.0,63673.0,0.157051]
[1721062699306,0.2274,63678.0,63677.0,0.157042]
[1721062699502,0.23046353,63684.0,63679.0,0.157037]
[1721062699686,0.106,63683.0,63678.0,0.157037]
[1721062699889,0.00306353,63682.0,63678.0,0.157037]
[1721062700155,0.00306353,63682.0,63680.0,0.01773602]
[1721062700363,0.2274,63684.0,63682.0,0.157027]
[1721062700661,0.00306353,63688.0,63683.0,0.157027]
[1721062700864,0.00306353,63688.0,63683.0,0.17476302]
[1721062701066,0.00306353,63688.0,63684.0,0.157023]
[1721062701266,0.002,63682.0,63681.0,0.01773602]
[1721062701406,0.002,63682.0,63681.0,0.157032]
[1721062701627,0.00306353,63687.0,63682.0,0.157029]
[1721062701820,0.05935791,63685.0,63677.0,0.01873602]
[1721062702030,0.05935791,63683.0,63677.0,0.001]
[1721062702224,0.00306353,63682.0,63671.0,0.33184902]
[1721062702429,0.05935791,63681.0,63680.0,0.005]
[1721062702667,0.28675791,63681.0,63680.0,0.005]
[1721062702920,0.05935791,63680.0,63669.0,0.01773602]
[1721062703257,0.05935791,63680.0,63668.0,0.062]
[1721062703258,0.00306353,63679.0,63677.0,0.004]
[1721062703460,0.05935791,63678.0,63677.0,0.004]
[1721062703663,0.05935791,63680.0,63677.0,0.004]
[1721062703864,0.05935791,63680.0,63671.0,0.01773602]
[1721062703978,0.05935791,63677.0,63671.0,0.01773602]
[1721062704179,0.05935791,63677.0,63670.0,0.157058]
[1721062704398,0.05935791,63670.0,63664.0,0.157072]
[1721062704689,0.05935791,63670.0,63665.0,0.157071]
[1721062704824,0.2274,63673.0,63667.0,0.157066]
[1721062705056,0.0793,63676.0,63668.0,0.157064]
[1721062705463,0.2274,63679.0,63668.0,0.157064]
[1721062705464,0.00306353,63675.0,63669.0,0.0987884]
[1721062705668,0.2274,63679.0,63673.0,0.01773602]
[1721062705669,0.00306353,63678.0,63673.0,0.01773602]
[1721062705880,0.05935791,63677.0,63667.0,0.157066]
[1721062706094,0.00306353,63676.0,63667.0,0.157066]
[1721062706296,0.00306353,63676.0,63668.0,0.160064]
[1721062706501,0.05935791,63677.0,63668.0,0.160064]
[1721062706502,0.05935791,63677.0,63668.0,0.006]
[1721062706711,0.00306353,63676.0,63668.0,0.006]
[1721062706908,0.00306353,63676.0,63670.0,0.01773602]
[1721062707112,0.00306353,63678.0,63673.0,0.01773602]
[1721062707712,0.00306353,63678.0,63673.0,0.01873602]
[1721062707939,0.2274,63679.0,63673.0,0.01873602]
[1721062708142,0.2274,63679.0,63673.0,0.001]
[1721062708345,0.05935791,63675.0,63673.0,0.001]
[1721062708522,0.05935791,63677.0,63673.0,0.001]
[1721062708726,0.001,63678.0,63669.0,0.157062]
[1721062708727,0.05935791,63674.0,63669.0,0.157062]
[1721062708926,0.05935791,63675.0,63669.0,0.157062]
[1721062709249,0.05935791,63677.0,63673.0,0.001]
[1721062709459,0.05935791,63677.0,63668.0,0.01773602]
[1721062709666,0.05935791,63677.0,63670.0,0.001]
[1721062709880,0.28675791,63679.0,63670.0,0.001]
[1721062710213,0.28675791,63679.0,63670.0,0.157059]
[1721062710426,0.28675791,63679.0,63673.0,0.003]
[1721062710852,0.2274,63679.0,63676.0,0.08105238]
[1721062711212,0.00306353,63678.0,63676.0,0.08105238]
[1721062711410,0.2274,63679.0,63676.0,0.08105238]
[1721062711708,0.2274,63679.0,63673.0,0.01773602]
[1721062711909,0.2274,63679.0,63673.0,0.01873602]
[1721062712151,0.00306353,63678.0,63677.0,0.08105238]
[1721062712520,0.2274,63679.0,63677.0,0.08105238]
[1721062712696,0.0787,63684.0,63677.0,0.08105238]
[1721062712898,0.0787,63684.0,63676.0,0.01773602]
[1721062712899,0.00306353,63683.0,63676.0,0.01773602]
[1721062713069,0.00306353,63683.0,63676.0,0.01973602]
[1721062713830,0.00306353,63683.0,63676.0,0.002]
[1721062714373,0.00306353,63683.0,63675.0,0.157046]
[1721062714632,0.00606353,63683.0,63677.0,0.001]
[1721062714837,0.05935791,63679.0,63673.0,0.157151]
[1721062715040,0.05935791,63681.0,63673.0,0.157151]
[1721062715182,0.2274,63679.0,63673.0,0.157151]
[1721062715386,0.2274,63679.0,63673.0,0.15690565]
[1721062715602,0.2274,63679.0,63673.0,0.15700565]
[1721062716169,0.00306353,63678.0,63673.0,0.15700565]
[1721062716333,0.00306353,63678.0,63673.0,0.15900565]
[1721062716952,0.00306353,63678.0,63673.0,0.17674167]
[1721062717156,0.2274,63679.0,63675.0,0.01773602]
[1721062717359,0.2274,63679.0,63673.0,0.0031]
[1721062717564,0.2274,63679.0,63672.0,0.01773602]
[1721062717730,0.00306353,63678.0,63673.0,0.157052]
[1721062717929,0.00306353,63678.0,63673.0,0.160052]
[1721062718134,0.05935791,63677.0,63672.0,0.157053]
[1721062718550,0.05935791,63677.0,63673.0,0.002]
[1721062718745,0.2274,63679.0,63662.0,0.01773602]
[1721062718746,0.05935791,63673.0,63662.0,0.01773602]
[1721062718971,0.05935791,63670.0,63663.0,0.157076]
[1721062719309,0.2883,63673.0,63665.0,0.01773602]
[1721062719310,0.0765,63672.0,63665.0,0.01773602]
[1721062719502,0.0765,63672.0,63667.0,0.01773602]
[1721062719683,0.2274,63673.0,63669.0,0.01773602]
[1721062719895,0.2274,63673.0,63670.0,0.08105238]
[1721062720071,0.3648,63679.0,63673.0,0.01773602]
[1721062720274,0.3648,63679.0,63670.0,0.157058]
[1721062720458,0.3648,63679.0,63671.0,0.01773602]
[1721062720888,0.3648,63679.0,63673.0,0.004]
[1721062721093,0.3648,63679.0,63671.0,0.01773602]
[1721062721289,0.00306353,63678.0,63671.0,0.01773602]
[1721062721707,0.00306353,63678.0,63673.0,0.0001]
[1721062721953,0.3668,63679.0,63673.0,0.0001]
[1721062722157,0.3688,63679.0,63673.0,0.0001]
[1721062722355,0.3688,63679.0,63673.0,0.01783602]
[1721062722553,0.00306353,63678.0,63673.0,0.01783602]
[1721062722759,0.00506353,63678.0,63673.0,0.01783602]
[1721062722958,0.00506353,63678.0,63673.0,0.0001]
[1721062722959,0.002,63678.0,63673.0,0.0001]
[1721062723158,0.002,63678.0,63673.0,0.01783602]
[1721062723337,0.002,63678.0,63673.0,0.0001]
[1721062723749,0.05935791,63677.0,63673.0,0.0001]
[1721062724346,0.05935791,63674.0,63673.0,0.0001]
[1721062724548,0.40075791,63674.0,63673.0,0.0001]
[1721062724791,0.40075791,63674.0,63670.0,0.000913]
[1721062724792,0.35935791,63671.0,63670.0,0.000913]
[1721062724965,0.35935791,63671.0,63648.0,0.01773602]
[1721062724966,0.05935791,63656.0,63648.0,0.17484902]
[1721062725167,0.2274,63653.0,63649.0,0.01773602]
[1721062725406,0.2274,63653.0,63648.0,0.17484902]
[1721062725962,0.2274,63653.0,63648.0,0.01773602]
[1721062726163,0.2274,63653.0,63633.0,3.2]
[1721062726164,0.28665791,63653.0,63640.0,0.000913]
[1721062726570,0.28665791,63653.0,63652.0,0.006]
[1721062726778,0.38655791,63653.0,63652.0,0.006]
[1721062726977,0.3272,63653.0,63645.0,0.01773602]
[1721062727447,0.38755791,63653.0,63645.0,0.01773602]
[1721062727589,0.3282,63653.0,63645.0,0.01773602]
[1721062728015,0.3281,63653.0,63648.0,0.157113]
[1721062728314,0.3281,63653.0,63646.0,0.01773602]
[1721062728486,0.3281,63653.0,63646.0,0.157118]
[1721062728689,0.38645791,63653.0,63644.0,0.01773602]
[1721062728898,0.05935791,63650.0,63642.0,0.01773602]
[1721062729199,0.38645791,63653.0,63642.0,0.01773602]
[1721062729428,0.05935791,63648.0,63642.0,0.01773602]
[1721062729702,0.05935791,63650.0,63641.0,0.157131]
[1721062729908,0.05935791,63649.0,63642.0,0.01773602]
[1721062730322,0.05935791,63650.0,63641.0,0.157131]
[1721062730490,0.2274,63642.0,63640.0,0.000913]
[1721062731307,0.2273,63642.0,63640.0,0.000913]
[1721062731713,0.05935791,63641.0,63640.0,0.013913]
[1721062731921,0.23955791,63641.0,63640.0,0.013913]
[1721062732258,0.23955791,63641.0,63640.0,0.000913]
[1721062732532,0.23955791,63641.0,63640.0,0.005913]
[1721062733297,0.70505791,63641.0,63640.0,0.005913]
[1721062733505,0.70505791,63641.0,63640.0,0.000913]
[1721062733706,0.87045791,63641.0,63640.0,0.000913]
[1721062733904,0.87045791,63641.0,63640.0,0.005913]
[1721062734110,0.77045791,63641.0,63640.0,0.000913]
[1721062734307,0.77145791,63641.0,63640.0,0.000913]
[1721062734511,0.67135791,63641.0,63640.0,0.000913]
[1721062734707,0.57125791,63641.0,63640.0,0.000913]
[1721062734959,0.67125791,63641.0,63640.0,0.000913]
[1721062735148,0.67115791,63641.0,63640.0,0.000913]
[1721062735354,0.57115791,63641.0,63640.0,0.000913]
[1721062735560,0.67115791,63641.0,63640.0,0.000913]
[1721062735989,0.57115791,63641.0,63640.0,0.000913]
[1721062736189,0.67115791,63641.0,63640.0,0.000913]
[1721062737423,0.57105791,63641.0,63640.0,0.000913]
[1721062737600,0.67105791,63641.0,63640.0,0.000913]
[1721062737810,0.87095791,63641.0,63640.0,0.000913]
[1721062738215,0.22435791,63634.0,63633.0,3.2]
[1721062738373,0.75175791,63634.0,63633.0,3.2]
[1721062738984,0.85165791,63634.0,63633.0,3.2]
[1721062739180,0.65165791,63634.0,63633.0,3.2]
[1721062739429,0.65765791,63634.0,63633.0,3.201]
[1721062739610,0.86365791,63634.0,63633.0,3.202]
[1721062739811,0.98665791,63634.0,63633.0,3.202]
[1721062739991,1.06625791,63634.0,63633.0,3.202]
[1721062740187,1.12855791,63634.0,63633.0,3.202]
[1721062740405,1.02855791,63634.0,63633.0,3.202]
[1721062740607,1.11655791,63634.0,63633.0,3.2]
[1721062741079,1.12855791,63634.0,63633.0,3.202]
[1721062741859,1.28570591,63634.0,63633.0,3.202]
[1721062742084,1.28570591,63634.0,63633.0,1.948]
[1721062742239,1.28866944,63634.0,63633.0,1.948]
[1721062742660,1.13152144,63634.0,63633.0,1.948]
[1721062742860,1.28866944,63634.0,63633.0,1.948]
[1721062743114,1.28560591,63634.0,63633.0,1.948]
[1721062743447,1.73004177,63634.0,63633.0,1.4737]
[1721062743641,1.47138386,63634.0,63633.0,1.4738]
[1721062743851,1.73004177,63634.0,63633.0,1.4738]
[1721062744050,1.59990291,63634.0,63633.0,1.4738]
[1721062744292,1.91419991,63634.0,63633.0,1.4738]
[1721062744522,2.00256991,63634.0,63633.0,1.4728]
[1721062744730,1.99656991,63634.0,63633.0,1.4718]
[1721062744902,2.08608782,63634.0,63633.0,1.1588]
[1721062745057,2.40038482,63634.0,63633.0,1.1578]
[1721062745263,1.50437991,63625.0,63624.0,0.009163]
[1721062745486,1.46726891,63625.0,63624.0,0.009163]
[1721062746019,0.99575791,63625.0,63624.0,0.009163]
[1721062746214,1.15292791,63625.0,63624.0,0.009163]
[1721062746428,1.87597991,63625.0,63624.0,0.009163]
[1721062746625,2.05209782,63625.0,63624.0,0.010163]
[1721062746956,2.05199782,63625.0,63624.0,0.010163]
[1721062747131,2.03799782,63625.0,63624.0,0.009163]
[1721062747378,2.35233882,63625.0,63624.0,0.009163]
[1721062747587,2.35233882,63625.0,63612.0,0.009174]
[1721062747588,0.45855791,63613.0,63612.0,0.009174]
[1721062747796,0.74705791,63613.0,63612.0,0.009174]
[1721062747972,0.97445791,63613.0,63612.0,0.009174]
[1721062748912,1.46295891,63613.0,63612.0,0.009174]
[1721062749290,1.57132891,63613.0,63612.0,0.010174]
[1721062749463,2.145455,63613.0,63612.0,0.010174]
[1721062749665,2.445856,63613.0,63612.0,0.009174]
[1721062749903,1.904055,63613.0,63612.0,0.009174]
[1721062750115,1.904055,63613.0,63612.0,0.010174]
[1721062750116,2.27332256,63613.0,63612.0,0.010174]
[1721062750488,1.93092156,63613.0,63612.0,0.009174]
[1721062750832,1.39043818,63613.0,63612.0,0.010174]
[1721062751168,1.64422991,63613.0,63612.0,0.010174]
[1721062751370,1.65822991,63613.0,63612.0,0.010174]
[1721062751797,1.32982891,63613.0,63612.0,0.010174]
[1721062752216,1.34382891,63613.0,63612.0,0.010174]
[1721062752385,1.50594682,63613.0,63612.0,0.010174]
[1721062752587,1.82034782,63613.0,63612.0,0.010174]
[1721062752957,2.27074882,63613.0,63612.0,0.009174]
[1721062753156,2.36671871,63613.0,63612.0,0.009174]
[1721062753364,2.36671871,63613.0,63599.0,0.000913]
[1721062753365,0.45845791,63606.0,63599.0,0.000913]
[1721062753571,1.07162791,63606.0,63599.0,0.000913]
[1721062753794,1.90354647,63606.0,63599.0,0.000913]
[1721062753926,1.85771491,63606.0,63599.0,0.000913]
[1721062754129,1.85761491,63606.0,63599.0,0.000913]
[1721062754331,2.29009655,63606.0,63599.0,0.000913]
[1721062754551,2.53606644,63606.0,63599.0,0.000913]
[1721062754753,2.50423488,63606.0,63599.0,0.000913]
[1721062754954,2.18979988,63606.0,63599.0,0.000913]
[1721062755386,2.45409655,63606.0,63599.0,0.000913]
[1721062755742,2.50423488,63606.0,63599.0,0.000913]
[1721062755937,2.49023488,63606.0,63599.0,0.000913]
[1721062756149,1.50437791,63601.0,63600.0,0.02174419]
[1721062756354,1.52737791,63601.0,63600.0,0.02174419]
[1721062756913,1.52737791,63601.0,63600.0,0.02266819]
[1721062757051,0.62385791,63601.0,63600.0,0.02266819]
[1721062757455,0.62375791,63601.0,63600.0,0.02266819]
[1721062757897,0.63765791,63601.0,63600.0,0.02266819]
[1721062758472,0.62365791,63601.0,63600.0,0.02266819]
[1721062758755,1.36583582,63601.0,63600.0,0.02266819]
[1721062758989,1.69429582,63601.0,63600.0,0.02266819]
[1721062759218,1.68029582,63601.0,63600.0,0.02266819]
[1721062759445,1.22671791,63601.0,63600.0,0.02266819]
[1721062759682,0.76902791,63601.0,63600.0,0.02266819]
[1721062760329,0.75502791,63601.0,63600.0,0.02266819]
[1721062760547,0.66065791,63601.0,63600.0,0.02266819]
[1721062760961,0.67465791,63601.0,63600.0,0.02266819]
[1721062761292,0.66065791,63601.0,63600.0,0.02266819]
[1721062761442,0.67465791,63601.0,63600.0,0.02266819]
[1721062761804,0.66065791,63601.0,63600.0,0.02266819]
[1721062762009,0.67465791,63601.0,63600.0,0.02276819]
[1721062763834,0.47495791,63601.0,63600.0,0.08346819]
[1721062764034,0.67465791,63601.0,63600.0,0.08346819]
[1721062764184,0.67465791,63601.0,63600.0,0.02276819]
[1721062764586,0.66065791,63601.0,63600.0,0.02276819]
[1721062764965,0.64665791,63601.0,63600.0,0.02276819]
[1721062765165,0.67465791,63601.0,63600.0,0.02276819]
[1721062765755,0.66065791,63601.0,63600.0,0.02276819]
[1721062766196,0.67465791,63601.0,63600.0,0.02276819]
[1721062766484,0.47495791,63601.0,63600.0,0.02276819]
[1721062766678,0.46095791,63601.0,63600.0,0.09996819]
[1721062766835,0.47495791,63601.0,63600.0,0.09996819]
[1721062767261,0.66065791,63601.0,63600.0,0.02276819]
[1721062767598,0.67465791,63601.0,63600.0,0.02276819]
[1721062767809,0.66065791,63601.0,63600.0,0.02276819]
[1721062768402,0.88805791,63601.0,63600.0,0.02276819]
[1721062768583,0.90205791,63601.0,63600.0,0.02276819]
[1721062769897,1.0457318,63601.0,63600.0,0.02276819]
[1721062770104,1.2029618,63601.0,63600.0,0.02276819]
[1721062770329,1.3002318,63601.0,63600.0,0.02276819]
[1721062770529,1.9291518,63601.0,63600.0,0.02276819]
[1721062770724,1.6146918,63601.0,63600.0,0.02276819]
[1721062770900,1.9291518,63601.0,63600.0,0.02276819]
[1721062771595,1.15655791,63601.0,63600.0,0.02276819]
[1721062771811,1.25655791,63601.0,63600.0,0.02276819]
[1721062772014,2.19993791,63601.0,63600.0,0.02248719]
[1721062772726,1.88547791,63601.0,63600.0,0.02248719]
[1721062772953,1.25655791,63601.0,63600.0,0.02248719]
[1721062773180,1.09642791,63601.0,63600.0,0.02248719]
[1721062773381,1.25365791,63601.0,63600.0,0.02248719]
[1721062773598,1.09642791,63601.0,63600.0,0.02248719]
[1721062773803,1.25365791,63601.0,63600.0,0.02248719]
[1721062774034,1.27727628,63601.0,63600.0,0.02248719]
[1721062774236,1.09642791,63601.0,63600.0,0.02248719]
[1721062774848,0.77465791,63601.0,63600.0,0.02248719]
[1721062775511,0.55195791,63601.0,63600.0,0.10178719]
[1721062777021,0.1935,63601.0,63600.0,0.10178719]
[1721062777194,0.05845791,63604.0,63601.0,0.0631]
[1721062777373,0.1655,63607.0,63604.0,0.0788]
[1721062777584,0.1655,63607.0,63603.0,0.08105238]
[1721062777585,0.1655,63607.0,63606.0,0.0631]
[1721062777782,0.22395791,63607.0,63606.0,0.0631]
[1721062778199,0.32395791,63607.0,63606.0,0.0631]
[1721062778876,0.52365791,63607.0,63606.0,0.0631]
[1721062779048,0.52365791,63601.0,63600.0,0.10128719]
[1721062779194,0.54665791,63601.0,63600.0,0.10128719]
[1721062779402,0.64665791,63601.0,63600.0,0.02248719]
[1721062779604,0.71802791,63600.0,63599.0,0.000913]
[1721062779965,0.74655791,63600.0,63599.0,0.000913]
[1721062780604,0.84092791,63600.0,63599.0,0.000913]
[1721062781224,0.85492791,63600.0,63599.0,0.000913]
[1721062781493,0.84092791,63600.0,63599.0,0.000913]
[1721062781709,0.85492791,63600.0,63599.0,0.000913]
[1721062782130,0.95782791,63600.0,63599.0,0.000913]
[1721062782327,0.95772791,63600.0,63599.0,0.000913]
[1721062782765,0.97072791,63600.0,63599.0,0.001913]
[1721062782881,1.11395991,63600.0,63599.0,0.001913]
[1721062783088,1.27219291,63600.0,63599.0,0.000913]
[1721062783311,1.11495991,63600.0,63599.0,0.000913]
[1721062783508,1.10095991,63600.0,63599.0,0.001913]
[1721062783708,0.46095791,63600.0,63599.0,0.002913]
[1721062783934,0.66065791,63600.0,63599.0,0.002913]
[1721062784831,0.46095791,63600.0,63599.0,0.002913]
[1721062785010,0.46095791,63600.0,63599.0,0.140813]
[1721062785576,0.56085791,63600.0,63599.0,0.140813]
[1721062785795,0.56075791,63600.0,63599.0,0.140813]
[1721062786012,0.56075791,63600.0,63599.0,0.139813]
[1721062786228,0.55965791,63600.0,63599.0,0.139813]
[1721062786386,0.57365791,63600.0,63599.0,0.139813]
[1721062786801,0.56065791,63600.0,63599.0,0.138813]
[1721062787008,0.77335791,63600.0,63599.0,0.139813]
[1721062787190,0.5152,63600.0,63599.0,0.139813]
[1721062787394,0.77335791,63600.0,63599.0,0.139813]
[1721062787602,0.5152,63600.0,63599.0,0.139813]
[1721062787805,0.77335791,63600.0,63599.0,0.139813]
[1721062788179,0.77335791,63600.0,63599.0,0.001913]
[1721062788394,0.87305791,63600.0,63599.0,0.001913]
[1721062789228,1.43912491,63600.0,63599.0,0.001913]
[1721062789660,1.75358991,63600.0,63599.0,0.002013]
[1721062791152,1.73958991,63600.0,63599.0,0.002013]
[1721062791306,0.78030291,63595.0,63594.0,0.00745558]
[1721062791542,1.13070291,63595.0,63594.0,0.00745558]
[1721062792542,1.13060291,63595.0,63594.0,0.00745558]
[1721062792701,1.45909291,63595.0,63594.0,0.00745558]
[1721062792906,1.55346291,63595.0,63594.0,0.00745558]
[1721062793321,1.81812691,63590.0,63589.0,0.009174]
[1721062793582,1.81812691,63590.0,63575.0,0.0608]
[1721062793583,1.42926591,63585.0,63575.0,0.0608]
[1721062793794,1.71213591,63585.0,63575.0,0.0608]
[1721062794004,2.28879282,63585.0,63575.0,0.0608]
[1721062794206,2.29169282,63585.0,63570.0,0.1375]
[1721062794412,0.62295791,63570.0,63566.0,0.0608]
[1721062794613,0.74595791,63570.0,63566.0,0.0608]
[1721062794786,0.74585791,63570.0,63566.0,0.0608]
[1721062795000,0.90316391,63570.0,63566.0,0.0608]
[1721062795243,0.90316391,63570.0,63550.0,0.02347625]
[1721062795244,0.15795791,63553.0,63552.0,0.0608]
[1721062795475,0.32345791,63553.0,63552.0,0.0608]
[1721062795703,0.42345791,63553.0,63552.0,0.0608]
[1721062795934,0.44645791,63553.0,63552.0,0.0608]
[1721062796185,0.42345791,63553.0,63552.0,0.0608]
[1721062796689,0.43745791,63553.0,63552.0,0.0608]
[1721062797163,0.43235791,63553.0,63552.0,0.0608]
[1721062797389,0.43225791,63553.0,63552.0,0.0608]
[1721062797625,0.44525791,63553.0,63552.0,0.0608]
[1721062797998,0.63185791,63553.0,63552.0,0.0608]
[1721062798204,0.61785791,63553.0,63552.0,0.0608]
[1721062798418,0.63185791,63553.0,63552.0,0.0608]
[1721062798631,0.63175791,63553.0,63552.0,0.0608]
[1721062798840,0.41815791,63553.0,63552.0,0.0608]
[1721062799036,0.61775791,63553.0,63552.0,0.0608]
[1721062799247,0.64575791,63553.0,63552.0,0.0608]
[1721062799677,0.61775791,63553.0,63552.0,0.0608]
[1721062799871,0.43215791,63553.0,63552.0,0.0608]
[1721062800089,0.44615791,63553.0,63552.0,0.0608]
[1721062800447,0.128,63553.0,63552.0,0.300751]
[1721062800638,0.327,63568.0,63552.0,0.300751]
[1721062800639,0.05305791,63562.0,63561.0,0.0004]
[1721062800875,0.05305791,63560.0,63553.0,0.08105238]
[1721062801119,0.05295791,63554.0,63553.0,0.08105238]
[1721062801340,0.05295791,63554.0,63553.0,0.22595238]
[1721062802348,0.2653,63563.0,63553.0,0.08105238]
[1721062802349,0.05295791,63556.0,63553.0,0.08105238]
[1721062802599,0.05295791,63556.0,63555.0,0.0765]
[1721062802809,0.25255791,63556.0,63555.0,0.0765]
[1721062803033,0.35215791,63556.0,63555.0,0.0765]
[1721062803320,0.45215791,63556.0,63555.0,0.0765]
[1721062803534,0.61765791,63556.0,63555.0,0.0765]
[1721062803779,0.41805791,63556.0,63555.0,0.0765]
[1721062804196,0.41805791,63556.0,63555.0,0.0775]
[1721062804197,0.43405791,63556.0,63555.0,0.0775]
[1721062804747,0.16895791,63556.0,63555.0,0.0775]
[1721062804973,0.06895791,63556.0,63555.0,0.0775]
[1721062805246,0.116,63556.0,63555.0,0.0775]
[1721062805724,0.116,63556.0,63555.0,0.1403]
[1721062806321,0.016,63556.0,63555.0,0.1403]
[1721062806702,0.06895791,63556.0,63555.0,0.1403]
[1721062807836,0.016,63556.0,63555.0,0.1403]
[1721062808046,0.016,63556.0,63555.0,0.1407]
[1721062808265,0.016,63556.0,63555.0,0.1403]
[1721062808629,0.06895791,63556.0,63555.0,0.1403]
[1721062809332,0.26855791,63556.0,63555.0,0.1403]
[1721062809522,0.16895791,63556.0,63555.0,0.1403]
[1721062809661,0.46815791,63556.0,63555.0,0.1403]
[1721062810075,0.63365791,63556.0,63555.0,0.1403]
[1721062810275,0.73345791,63556.0,63555.0,0.1403]
[1721062810484,0.96085791,63556.0,63555.0,0.001]
[1721062810927,0.98385791,63556.0,63555.0,0.001]
[1721062812197,1.58115191,63556.0,63555.0,0.001]
[1721062812399,1.89583491,63556.0,63555.0,0.001]
[1721062812976,2.21051791,63556.0,63555.0,0.001]
[1721062813204,2.20151791,63556.0,63555.0,0.001]
[1721062813408,2.37063582,63556.0,63555.0,0.001]
[1721062813817,2.38463582,63556.0,63555.0,0.002]
[1721062814026,2.38463582,63556.0,63550.0,0.02347625]
[1721062814027,0.60931091,63551.0,63550.0,0.02347625]
[1721062814231,1.18390291,63549.0,63548.0,0.009174]
[1721062814432,1.84901991,63549.0,63548.0,0.00650392]
[1721062814651,2.00208344,63549.0,63548.0,0.00650392]
[1721062815648,2.34770044,63549.0,63536.0,0.009174]
[1721062815855,1.12751591,63537.0,63536.0,0.009174]
[1721062816062,1.88006991,63537.0,63536.0,0.009174]
[1721062816267,1.18400091,63536.0,63524.0,0.4863143]
[1721062816467,1.93962844,63536.0,63520.0,0.145685]
[1721062816668,0.61745791,63521.0,63520.0,0.009185]
[1721062816986,0.96775791,63521.0,63520.0,0.009185]
[1721062817612,0.1,63521.0,63520.0,0.009185]
[1721062817815,0.15295791,63521.0,63520.0,0.074485]
[1721062818020,0.15295791,63521.0,63520.0,0.157685]
[1721062818257,0.25255791,63521.0,63520.0,0.009185]
[1721062818472,0.45205791,63521.0,63520.0,0.009185]
[1721062818678,0.64055791,63521.0,63520.0,0.009185]
[1721062819031,0.89778591,63521.0,63520.0,0.009285]
[1721062819460,0.74035791,63521.0,63520.0,0.009285]
[1721062819669,0.109,63521.0,63520.0,0.151985]
[1721062819840,0.1,63521.0,63520.0,0.151985]
[1721062820045,0.15255791,63521.0,63520.0,0.151985]
[1721062820243,0.51755791,63521.0,63520.0,0.151985]
[1721062820441,0.05295791,63521.0,63520.0,0.151985]
[1721062820648,0.25255791,63521.0,63520.0,0.151985]
[1721062821046,0.46105791,63521.0,63520.0,0.101985]
[1721062821459,0.62655791,63521.0,63520.0,0.101985]
[1721062821806,0.61755791,63521.0,63520.0,0.101985]
[1721062822029,0.63055791,63521.0,63520.0,0.101985]
[1721062822418,0.63055791,63521.0,63520.0,0.102085]
[1721062822622,0.64055791,63521.0,63520.0,0.102085]
[1721062823021,0.65455791,63521.0,63520.0,0.102085]
[1721062823385,0.91178591,63521.0,63520.0,0.0001]
[1721062823594,0.92578591,63521.0,63520.0,0.0001]
[1721062823777,0.93978591,63521.0,63520.0,0.0001]
[1721062823912,0.78235791,63521.0,63520.0,0.0001]
[1721062824118,1.40012767,63521.0,63520.0,0.0001]
[1721062824328,1.71498367,63521.0,63520.0,0.0001]
[1721062824533,1.44704967,63521.0,63520.0,0.0001]
[1721062825139,1.74790567,63521.0,63520.0,0.0001]
[1721062825343,1.76218703,63521.0,63520.0,0.0001]
[1721062825523,2.02983967,63521.0,63520.0,0.0001]
[1721062826538,2.02983967,63521.0,63506.0,0.0127929]
[1721062826539,0.45185791,63507.0,63506.0,0.0127929]
[1721062826741,0.71725791,63507.0,63506.0,0.0127929]
[1721062827955,0.72125791,63507.0,63506.0,0.0127929]
[1721062828578,0.87471991,63507.0,63506.0,0.0127929]
[1721062828805,0.74525791,63507.0,63506.0,0.0127929]
[1721062829004,0.73115791,63507.0,63506.0,0.0127929]
[1721062829206,1.92963815,63507.0,63506.0,0.0127929]
[1721062829504,2.62728815,63507.0,63506.0,0.0127929]
[1721062829689,1.49881491,63501.0,63500.0,0.0011]
[1721062829891,1.87621491,63501.0,63500.0,0.0011]
[1721062830092,1.87621491,63501.0,63491.0,0.009185]
[1721062830093,1.18392791,63492.0,63491.0,0.009185]
[1721062830300,2.04382791,63492.0,63491.0,0.009185]
[1721062830505,2.48182791,63492.0,63491.0,0.009185]
[1721062830712,1.81396291,63490.0,63489.0,0.009185]
[1721062830921,0.35175791,63476.0,63475.0,0.0811]
[1721062831121,0.35175791,63476.0,63454.0,0.4867143]
[1721062831122,1.08969891,63473.0,63472.0,0.0641]
[1721062831333,0.35175791,63469.0,63468.0,0.1471]
[1721062831533,0.63198818,63469.0,63468.0,0.1471]
[1721062831740,0.88924518,63469.0,63468.0,0.1471]
[1721062831956,0.88924518,63469.0,63444.0,0.0006]
[1721062831957,0.25205791,63457.0,63444.0,0.0006]
[1721062832185,0.2274,63458.0,63444.0,0.0002]
[1721062832397,0.2274,63458.0,63443.0,0.4991072]
[1721062832398,1.546705,63457.0,63453.0,0.11080134]
[1721062832602,1.73182291,63457.0,63453.0,0.11080134]
[1721062832813,1.254531,63457.0,63453.0,0.11080134]
[1721062833240,1.898879,63457.0,63453.0,0.11080134]
[1721062833444,1.94674,63454.0,63453.0,0.11080134]
[1721062833663,2.44935791,63454.0,63453.0,0.11080134]
[1721062833874,2.702428,63454.0,63453.0,0.11080134]